Cogmind - Beta 13 @@@ ROGUE MODE // 2024.04.16 @ 22:46:39 Player: Person Guy Result: Destroyed by G-47 Trooper with Particle Gun Performance ------------- Evolutions (3) 1500 Regions Visited (8) 1600 Robots Destroyed (78) 390 Value Destroyed (2444) 2444 Prototype IDs (10) 200 Alien Tech Used (0) 0 Bonus (321) 321 TOTAL SCORE: 6455 Bonus ------- Follower Combat Kills 21 Aligned with FarCom 300 Cogmind --------- Core Integrity 0/700 Matter 288/300 Energy 98/100 System Corruption 5% Temperature Cool (10) Movement Treading (160) Location -7/Lower Caves Parts ------- > --- POWER (1) -------- (None) > --- PROPULSION (3) --- Light Treads > --- UTILITY (6) ------ Large Storage Unit Hacking Suite > --- WEAPON (3) ------- (None) > --- INVENTORY (15) --- Improved Deuterium Engine Medium Treads Improved Heat Sink Large Storage Unit Matter Filter Kinecellerator Hacking Suite Heart of Steel Latent Energy Streamer Peak State ------------ > --- POWER ------------ Deuterium Engine > --- PROPULSION ------- Light Treads Advanced Treads Medium Treads > --- UTILITY ---------- Large Storage Unit Improved Light Armor Plating Hacking Suite Heart of Steel > --- WEAPON ----------- Flak Gun > --- INVENTORY -------- Improved Deuterium Engine Improved Heat Sink Large Storage Unit Matter Filter Kinecellerator Hacking Suite Latent Energy Streamer [Rating: 48] Favorites ----------- Power Light Ion Engine Engine Light Ion Engine Power Core Light Nuclear Core Propulsion Light Treads Treads Light Treads Leg Aluminum Leg Flight Unit Flight Unit Utility Hacking Suite Device Improved Heat Sink Storage Large Storage Unit Hackware Hacking Suite Protection Hardened Medium Armor Plating Weapon Light Assault Rifle Energy Gun Advanced Beam Rifle Energy Cannon Latent Energy Streamer Ballistic Gun Light Assault Rifle Ballistic Cannon Assault Cannon Launcher Proton Missile Launcher Build | -11 -10 -10 -10 -9 -8 -7 -7 -7 ------- Run | Yrd Mat Min Exi Min Mat Fac Low Low Slots Evolved 6 | . . . . . 4 2 . . Power . | . . . . . . . . . Propulsion 1 | . . . . . 1 . . . Utility 4 | . . . . . 2 2 . . Weapon 1 | . . . . . 1 . . . Parts Attached 65 | 6 6 4 2 2 15 14 14 2 Power 10 | 1 1 1 . . 2 3 2 . Engine 9 | 1 1 1 . . 2 3 1 . Core 1 | . . . . . . . 1 . Reactor . | . . . . . . . . . Propulsion 16 | 2 1 2 . 1 3 4 3 . Treads 11 | 2 1 . . 1 . 4 3 . Leg 3 | . . . . . 3 . . . Wheel . | . . . . . . . . . Hover . | . . . . . . . . . Flight 2 | . . 2 . . . . . . Utility 14 | 1 1 . . 1 3 4 3 1 Device 3 | . . . . . 1 . 2 . Storage 3 | 1 1 . . . 1 . . . Processor . | . . . . . . . . . Hackware 3 | . . . . . . 3 . . Protection 5 | . . . . 1 1 1 1 1 Artifact . | . . . . . . . . . Weapon 25 | 2 3 1 2 . 7 3 6 1 Energy Gun 5 | . . . . . 4 . 1 . Energy Cannon 4 | . . . 1 . . . 2 1 Ballistic Gun 10 | 2 3 1 1 . 1 1 1 . Ballistic Cannon 5 | . . . . . 2 2 1 . Launcher 1 | . . . . . . . 1 . Special Weapon . | . . . . . . . . . Impact Weapon . | . . . . . . . . . Slashing Weapon . | . . . . . . . . . Piercing Weapon . | . . . . . . . . . Special Melee Weapon . | . . . . . . . . . Unidentified Prototypes 5 | . . . 1 . 3 . 1 . Parts Lost 30 | . 5 1 . . 6 . 14 4 Power 6 | . 2 . . . 1 . 2 1 Propulsion 7 | . 2 1 . . 1 . 2 1 Utility 7 | . . . . . 1 . 5 1 Weapon 10 | . 1 . . . 3 . 5 1 Highest Loss Streak 12 | . 2 1 . . 5 . 12 4 To Critical Strikes . | . . . . . . . . . Average Slot Usage (%) 80 | . 69 78 85 84 75 97 81 49 Engine 8 | . 6 12 14 14 8 7 6 6 Treads 13 | . 19 4 . 12 2 23 19 14 Leg 2 | . . . . . 16 . . . Flight 5 | . . 18 28 3 . . . . Device 2 | . . . . . 5 7 4 . Storage 10 | . 14 14 14 14 9 7 7 7 Hackware 6 | . . . . . . 21 16 7 Protection 4 | . . . . 11 9 7 5 7 Energy Gun 3 | . . . . . 7 7 5 . Ballistic Gun 17 | . 27 28 27 28 5 6 6 5 Ballistic Cannon 3 | . . . . . 11 7 4 . Naked Turns . | . . . . . . . . . Heaviest Build 50 | 10 22 25 25 32 43 50 50 36 Greatest Support 70 | 40 40 20 8 23 30 62 70 70 Greatest Overweight (x) 12 | . 2 8 3 3 12 . 9 1 Average Overweight (x) . | . . 2 3 1 1 . . . Largest Inventory Capacity 15 | 8 15 15 15 15 15 15 15 15 Average Capacity 13 | 6 9 15 15 15 15 15 15 15 Most Carried 15 | 4 8 9 13 8 13 15 15 12 Average Carried 8 | . 4 6 7 7 8 9 13 10 Final Capacity 15 | 8 15 15 15 15 15 15 15 15 Final Carried 15 | 1 7 7 7 8 13 15 10 11 Class Distribution -------------------- 38% | Mutant 23% | Scavenger-Mutant 22% | Scavenger-Skirmisher 7% | Hacker-Tank 5% | Hacker-Skirmisher Dominant Class ---------------- Mutant | -10/Materials Scavenger-Mutant | -10/Mines Scavenger-Mutant | -10/Exiles Mutant | -9/Mines Scavenger-Skirmisher | -8/Materials Scavenger-Skirmisher | -7/Factory Hacker-Tank | -7/Lower Caves Mutant | -7/Lower Caves Resources | -11 -10 -10 -10 -9 -8 -7 -7 -7 ----------- Run | Yrd Mat Min Exi Min Mat Fac Low Low Matter Collected 1874 | 252 206 55 . 24 586 415 286 50 Remotely . | . . . . . . . . . Salvage Created 2438 | . 516 86 . . 603 519 714 . Parts 161 | . 43 11 . . 44 31 32 . Haulers Intercepted 5 | . 1 . . . 3 1 . . Recyclers Shooed 1 | . 1 . . . . . . . Parts Field Recycled . | . . . . . . . . . Retrieved Matter . | . . . . . . . . . Parts Self-Destructed 29 | . . . . . . . 29 . Prevented 4 | . . . . . . . 4 . Kills | -11 -10 -10 -10 -9 -8 -7 -7 -7 ------- Run | Yrd Mat Min Exi Min Mat Fac Low Low Combat Hostiles Destroyed 64 | . 17 6 . . 13 11 17 . Guns 46 | . 17 6 . . 4 7 12 . Cannons 15 | . . . . . 9 4 2 . AOE 3 | . . . . . . . 3 . Classes Destroyed 13 | . 4 . . . 3 4 2 . Worker 4 | . . . . . 3 1 . . Hauler 5 | . 1 . . . 3 1 . . Mechanic 1 | . . . . . 1 . . . Operator 3 | . 2 . . . 1 . . . Watcher 1 | . . . . . . 1 . . Swarmer 21 | . 9 6 . . 2 . 4 . Grunt 31 | . 8 . . . 10 5 8 . Brawler 1 | . . . . . . . 1 . Duelist 3 | . . . . . . 1 2 . Sentry 3 | . . . . . . 2 1 . Hunter 1 | . . . . . 1 . . . Programmer 3 | . . . . . . 3 . . Behemoth 1 | . . . . . . . 1 . Best Kill Streak 12 | . 3 3 . . 5 4 12 . Combat Bots Only 12 | . 3 3 . . 3 4 12 . Max Kills in Single Turn 2 | . 1 2 . . 2 2 2 . Gunslinging 1 | . . 1 . . . . . . Exploded 2 | . . . . . . . 2 . Melee . | . . . . . . . . . Uniques/NPCs Destroyed . | . . . . . . . . . Combat | -11 -10 -10 -10 -9 -8 -7 -7 -7 -------- Run | Yrd Mat Min Exi Min Mat Fac Low Low Hostile Shots Fired 557 | . 114 30 . . 117 61 180 55 Missed 174 | . 35 8 . . 41 19 56 15 Damage Taken 5467 | . 827 177 . . 1107 545 2202 609 Core 1112 | . 131 59 . . 215 85 504 118 Absorbed by Shields . | . . . . . . . . . Core Remaining (%) 61 | 100 . . . 24 60 . . . Volleys Fired 227 | . 85 10 . . 62 29 34 7 Largest 3 | . 2 2 . . 3 3 3 2 Hottest 158 | . 40 40 . . 146 133 158 88 Shots Fired 511 | . 163 20 . . 162 84 74 8 Gun 380 | . 163 20 . . 76 58 57 6 Cannon 127 | . . . . . 86 26 13 2 Launcher 4 | . . . . . . . 4 . Special . | . . . . . . . . . Kinetic 420 | . 163 20 . . 136 55 40 6 Thermal 74 | . . . . . 17 29 28 . Explosive . | . . . . . . . . . Electromagnetic 17 | . . . . . 9 . 6 2 Robot Hit Streak 12 | . 10 4 . . 12 12 10 6 Robot Miss Streak 14 | . 9 4 . . 7 7 14 8 Penetration Max . | . . . . . . . . . Secondary Targets 7 | . 2 2 . . . . 3 . Max Gunslinging Chain 1 | . 1 1 . . . . 1 . Shots Hit Robots 306 | . 89 11 . . 90 60 49 7 Core Hits 197 | . 37 8 . . 39 53 57 3 Critical Kills . | . . . . . . . . . Critical Parts Destroyed . | . . . . . . . . . Critical Strikes 7 | . . . . . 3 4 . . Burn 2 | . . . . . . 2 . . Blast 5 | . . . . . 3 2 . . Melee Attacks . | . . . . . . . . . Impact . | . . . . . . . . . Slashing . | . . . . . . . . . Piercing . | . . . . . . . . . Sneak Attacks . | . . . . . . . . . Combat Hostiles . | . . . . . . . . . Follow-up Attacks . | . . . . . . . . . Damage Inflicted 5540 | . 772 95 . 3 1631 1310 1627 102 Guns 3200 | . 770 95 . . 415 890 963 67 Cannons 1721 | . . . . . 1212 416 88 5 Explosions 606 | . . . . . . . 576 30 Melee . | . . . . . . . . . Ramming 13 | . 2 . . 3 4 4 . . Kinetic 3899 | . 770 95 . . 1454 906 607 67 Thermal 1195 | . . . . . 121 400 674 . Explosive . | . . . . . . . . . Electromagnetic 433 | . . . . . 52 . 346 35 Impact . | . . . . . . . . . Slashing . | . . . . . . . . . Piercing . | . . . . . . . . . Highest Corruption 5 | . . . . . 2 . 3 5 Average Corruption 1 | . . . . . 1 . 2 3 Corruption Purged . | . . . . . . . . . Corruption Blocked . | . . . . . . . . . Effects 22 | . . . . . 9 . 7 6 Message Errors 4 | . . . . . 2 . 1 1 Matter Fused 5 | . . . . . 2 . 2 1 Heat Flow Errors 2 | . . . . . 2 . . . Energy Discharges 3 | . . . . . 1 . . 2 Parts Rejected 1 | . . . . . . . . 1 Data Loss (minor) 3 | . . . . . . . 2 1 Data Loss (major) 1 | . . . . . . . 1 . Misfires 1 | . . . . . . . 1 . Weapon Failures 2 | . . . . . 2 . . . Overload Shots . | . . . . . . . . . Overflow Damage 29 | . . . . . 19 10 . . Projectiles 29 | . . . . . 19 10 . . Explosions . | . . . . . . . . . Melee . | . . . . . . . . . Knockbacks 22 | . . . . . 16 5 1 . Impact . | . . . . . . . . . Kinetic 21 | . . . . . 15 5 1 . Secondary 1 | . . . . . 1 . . . Self-Inflicted Damage 10 | . . . . . . . 6 4 Shots 2 | . . . . . . . 1 1 Rammed 4 | . 1 . . 1 1 1 . . Targets Rammed 4 | . 1 . . 1 1 1 . . Kicked . | . . . . . . . . . Crushed . | . . . . . . . . . Highest Temperature 349 | . 12 . . . 349 93 126 18 Average Temperature 70 | . 6 . . . 107 31 44 12 Received Heat Transfer 1476 | . 132 . . . 486 147 369 342 Siege Activations . | . . . . . . . . . Robots Corrupted . | . . . . . . . . . Combat Hostiles . | . . . . . . . . . Parts Fried 1 | . . . . . . . 1 . Impact Corruptions . | . . . . . . . . . Robots Melted . | . . . . . . . . . Combat Hostiles . | . . . . . . . . . Parts Melted 1 | . . . . . . 1 . . Heat Transferred 2224 | . . . . . 259 851 1114 . Parts Sabotaged . | . . . . . . . . . Parts Stolen 1 | . . . . . . . . 1 Parts Stripped . | . . . . . . . . . Power Chain Reactions 2 | . . . . . . . 2 . Latent Energy Used 225 | . . . . . . . 154 71 LE Corruption 5 | . . . . . . . 3 2 Alert | -11 -10 -10 -10 -9 -8 -7 -7 -7 ------- Run | Yrd Mat Min Exi Min Mat Fac Low Low Peak Influence 252 | . 252 81 . . 200 176 . . Initial 35 | . . 11 . . . 35 . . Average 57 | . 108 50 . . 43 49 . . Maximum Alert Level 1 | . 1 . . . 1 . . . Low Security (%) 97 | 100 89 100 . 100 97 100 . . Level 1 2 | . 10 . . . 2 . . . Level 2 . | . . . . . . . . . Level 3 . | . . . . . . . . . Level 4 . | . . . . . . . . . Level 5 . | . . . . . . . . . High Security . | . . . . . . . . . Max Security . | . . . . . . . . . Squads Dispatched 13 | . 4 . . 1 3 5 . . Investigation 3 | . 1 . . . 1 1 . . Extermination 3 | . . . . . . 3 . . Reinforcement 6 | . 3 . . . 2 1 . . Assault 1 | . . . . 1 . . . . Garrison . | . . . . . . . . . Intercept . | . . . . . . . . . Searches Triggered . | . . . . . . . . . Construction Impeded 1 | . . . . . 1 . . . Haulers Reinforced . | . . . . . . . . . Active Scanning Responses . | . . . . . . . . . Cargo Convoy Interrupts 1 | . . . . . . 1 . . Stealth | -11 -10 -10 -10 -9 -8 -7 -7 -7 --------- Run | Yrd Mat Min Exi Min Mat Fac Low Low Distress Signals 6 | . 3 . . . 2 1 . . Communications Jammed . | . . . . . . . . . Distress Signals . | . . . . . . . . . Times Spotted 114 | . 34 9 . . 24 16 23 8 Peak Tracking Total 13 | . 4 3 . . 6 5 13 6 Tactical Retreats 4 | . . . . . 1 . 1 2 Traps | -11 -10 -10 -10 -9 -8 -7 -7 -7 ------- Run | Yrd Mat Min Exi Min Mat Fac Low Low Traps Triggered 4 | . 2 . . . 2 . . . Indirectly . | . . . . . . . . . Trap Hack Attempts . | . . . . . . . . . Triggered . | . . . . . . . . . Disarmed . | . . . . . . . . . Reprogrammed . | . . . . . . . . . Reused . | . . . . . . . . . Traps Extracted . | . . . . . . . . . Installed . | . . . . . . . . . Triggered 1 | . . . . . . 1 . . Machines | -11 -10 -10 -10 -9 -8 -7 -7 -7 ---------- Run | Yrd Mat Min Exi Min Mat Fac Low Low Machines Disabled 1 | . . . . . 1 . . . Max in Single Turn 1 | . . . . . 1 . . . Garrison Access 1 | . . . . . . 1 . . Machines Repaired . | . . . . . . . . . Machines Dismantled . | . . . . . . . . . Machines Sabotaged . | . . . . . . . . . Overloaded Fab Kills . | . . . . . . . . . Hacking | -11 -10 -10 -10 -9 -8 -7 -7 -7 --------- Run | Yrd Mat Min Exi Min Mat Fac Low Low Machines Accessed 14 | . 3 . . . 3 7 1 . Terminals 10 | . 3 . . . 2 5 . . Fabricators 1 | . . . . . . 1 . . Repair Stations . | . . . . . . . . . Recycling Units . | . . . . . . . . . Scanalyzers 1 | . . . . . 1 . . . Garrison Access 1 | . . . . . . 1 . . Total Hacks 37 | . 5 . . . 9 22 1 . Successful 22 | . 3 . . . 3 15 1 . Failed 15 | . 2 . . . 6 7 . . Catastrophic 7 | . 2 . . . 3 2 . . Database Lockouts . | . . . . . . . . . Manual 11 | . 1 . 1 . 2 7 . . Terminals 28 | . 5 . . . 5 18 . . Fabricators 3 | . . . . . . 3 . . Repair Stations . | . . . . . . . . . Recycling Units . | . . . . . . . . . Scanalyzers 4 | . . . . . 4 . . . Garrison Access 1 | . . . . . . 1 . . Terminal Hacks 17 | . 3 . . . 1 12 1 . Prototype ID Bank 2 | . 1 . . . . 1 . . Open Door 1 | . . . . . . . 1 . Alert Level 3 | . . . . . . 3 . . Locate Traps 2 | . 1 . . . . 1 . . Reprogram Traps 1 | . . . . . . 1 . . Dispatch Records 1 | . . . . . . 1 . . Maintenance Status 1 | . 1 . . . . . . . Recall Reinforcements 1 | . . . . . . 1 . . Hauler Manifests 1 | . . . . . 1 . . . Registered Components 2 | . . . . . . 2 . . Registered Prototypes 1 | . . . . . . 1 . . Zone Layout 1 | . . . . . . 1 . . Fabricator Hacks 2 | . . . . . . 2 . . Load Schematic 1 | . . . . . . 1 . . Build 1 | . . . . . . 1 . . Repair Station Hacks . | . . . . . . . . . Recycling Unit Hacks . | . . . . . . . . . Scanalyzer 2 | . . . . . 2 . . . Insert Component 1 | . . . . . 1 . . . Analyze 1 | . . . . . 1 . . . Garrison Access Hacks 1 | . . . . . . 1 . . Seal Access 1 | . . . . . . 1 . . Unauthorized Hacks . | . . . . . . . . . Terminals . | . . . . . . . . . Fabricators . | . . . . . . . . . Repair Stations . | . . . . . . . . . Recycling Units . | . . . . . . . . . Scanalyzers . | . . . . . . . . . Garrison Access . | . . . . . . . . . Data Cores Recovered . | . . . . . . . . . Used . | . . . . . . . . . Hacking Detections 9 | . 2 . . . 2 5 . . Full Trace Events 2 | . . . . . 1 1 . . Feedback Events . | . . . . . . . . . Feedback Blocked . | . . . . . . . . . Robot Schematics Acquired . | . . . . . . . . . Robots Built . | . . . . . . . . . Authchips . | . . . . . . . . . Time . | . . . . . . . . . Total Robot Build Rating . | . . . . . . . . . Part Schematics Acquired 1 | . . . . . 1 . . . Parts Built 1 | . . . . . . 1 . . Authchips . | . . . . . . . . . Time 36 | . . . . . . 36 . . Total Part Build Rating 3 | . . . . . . 3 . . Parts Repaired . | . . . . . . . . . Time . | . . . . . . . . . Parts Recycled . | . . . . . . . . . Recycled Matter . | . . . . . . . . . Retrieved Matter . | . . . . . . . . . Retrieved Components . | . . . . . . . . . Parts Scanalyzed 1 | . . . . . 1 . . . Part Schematics Acquired 1 | . . . . . 1 . . . Parts Damaged . | . . . . . . . . . Bothacking | -11 -10 -10 -10 -9 -8 -7 -7 -7 ------------ Run | Yrd Mat Min Exi Min Mat Fac Low Low Used RIF Installer . | . . . . . . . . . Robots Hacked . | . . . . . . . . . Non-combat . | . . . . . . . . . Combat . | . . . . . . . . . Robot Hacks Applied . | . . . . . . . . . Relay Couplers Released . | . . . . . . . . . Fabnet Peak Effective % . | . . . . . . . . . Robots Rewired 2 | . . . . . . . 2 . Allies Hacked . | . . . . . . . . . Hacks Repelled . | . . . . . . . . . Allies | -11 -10 -10 -10 -9 -8 -7 -7 -7 -------- Run | Yrd Mat Min Exi Min Mat Fac Low Low Total Allies 5 | . . 2 . 1 . . 2 . Largest Group 2 | . . 2 2 1 . . 2 . Highest-Rated Group 64 | . . 43 43 31 . . 64 . Highest-Rated Ally 32 | . . 31 31 31 . . 32 . Total Orders . | . . . . . . . . . Ally Attacks 25 | . . 14 . 2 . . 9 . Total Damage 714 | . . 131 . 42 . . 541 . Kills 3 | . . 3 . . . . . . Allies Corrupted . | . . . . . . . . . Allies Melted . | . . . . . . . . . Intel | -11 -10 -10 -10 -9 -8 -7 -7 -7 ------- Run | Yrd Mat Min Exi Min Mat Fac Low Low Robot Analysis Total . | . . . . . . . . . Derelict Logs Recovered 2 | . . 1 . . . . 1 . Drone Launches . | . . . . . . . . . Drone Recoveries . | . . . . . . . . . Exploration | -11 -10 -10 -10 -9 -8 -7 -7 -7 ------------- Run | Yrd Mat Min Exi Min Mat Fac Low Low Turns Passed 7655 | 76 1364 1364 574 518 1025 1503 973 258 Spaces Moved 3342 | 46 620 496 206 210 381 731 513 139 Core 29 | 9 5 8 . . 2 . 5 . Treads 2490 | 37 615 172 . 189 99 731 508 139 Legs 280 | . . . . . 280 . . . Wheels . | . . . . . . . . . Hover . | . . . . . . . . . Flight 543 | . . 316 206 21 . . . . Fastest Speed 50 | 50 150 240 277 240 190 158 152 152 Average Speed 196 | 138 175 266 277 243 206 161 160 166 Slowest Speed 650 | 160 240 450 277 277 650 163 500 240 Overloaded Moves . | . . . . . . . . . Propulsion Burnouts . | . . . . . . . . . Robots Hopped . | . . . . . . . . . Cave-ins Triggered . | . . . . . . . . . Exploration Rate (%) 46 | 4 86 95 61 46 27 20 62 21 Regions Visited 8 Branch Regions 5 Pre-discovered Areas . | . . . . . . . . . Known Exits Taken . | . . . . . . . . . Unknown Exits Taken 8 | 1 1 1 1 1 1 1 1 . Scrap Searched 5 | . . 1 . 1 . . 2 1 Spaces Dug . | . . . . . . . . . Terrain Destroyed 17 | . . . . . 11 1 5 . Melee . | . . . . . . . . . Projectile 15 | . . . . . 11 1 3 . AOE 2 | . . . . . . . 2 . Terrain Rammed . | . . . . . . . . . Walls Destroyed . | . . . . . . . . . Machines Disabled . | . . . . . . . . . Actions | -11 -10 -10 -10 -9 -8 -7 -7 -7 --------- Run | Yrd Mat Min Exi Min Mat Fac Low Low Total 4030 | 58 767 522 212 217 498 993 605 158 Wait 266 | . 37 8 . . 13 187 14 7 Move 3334 | 45 619 495 205 209 380 730 512 139 Hop . | . . . . . . . . . Pick Up 81 | 7 14 4 2 3 21 19 9 2 Fast Attach . | . . . . . . . . . Attach 61 | 6 5 4 1 2 14 14 13 2 Detach 5 | . . . 1 . . . 3 1 Swap 4 | . 1 . 1 . 1 . 1 . Drop 35 | . 5 1 2 2 6 13 6 . Fire 227 | . 85 10 . . 62 29 34 7 Melee . | . . . . . . . . . Ram . | . . . . . . . . . Kick . | . . . . . . . . . Crush 4 | . 1 . . 1 1 1 . . Escape Stasis . | . . . . . . . . . Rewire 13 | . . . . . . . 13 . Trap . | . . . . . . . . . Miscellaneous . | . . . . . . . . . Route ------- -11/Scrapyard -10/Materials (discovered 4 exits: [*Mat x3] / [*Min]) -10/Mines (discovered 3 exits: [*Mat x2] / *Exi) -10/Exiles -9/Mines -8/Materials -7/Factory -7/Lower Caves -7/Lower Caves History --------- Turn | Location | Event 14 | -11/Scrapyard | Discovered new exit (range 15) 77 | -11/Scrapyard | Entered Materials 306 | -10/Materials | Build established: Mutant 414 | -10/Materials | Discovered new exit (range 7) 514 | -10/Materials | Discovered new exit (range 10) 702 | -10/Materials | Discovered new exit (range 12) 906 | -10/Materials | Core integrity fell below 50% 977 | -10/Materials | Discovered new exit (range 14) 1441 | -10/Materials | Entered Mines 1543 | -10/Mines | Learned 2 Materials zone layouts 1570 | -10/Mines | Discovered new exit (range 6) 2062 | -10/Mines | Discovered new exit (range 8) 2232 | -10/Mines | Build established: Scavenger-Mutant 2790 | -10/Mines | Deemed a non-threat by the Exiles lab entrance 2790 | -10/Mines | Discovered new exit (range 5) 2805 | -10/Mines | Entered Exiles 2805 | -10/Exiles | Accompanied by 2 allies 2835 | -10/Exiles | Led the pair of lost Derelicts to a safe place 2872 | -10/Exiles | Met 8R-AWN 2919 | -10/Exiles | Met EX-HEX 2997 | -10/Exiles | Met EX-BIN 3030 | -10/Exiles | Aligned with FarCom system 3033 | -10/Exiles | Given EX-Vault access code 3102 | -10/Exiles | Opened EX-Vault 3113 | -10/Exiles | Found Prototype Device 3117 | -10/Exiles | Found Prototype Energy Cannon 3118 | -10/Exiles | Identified Latent Energy Streamer 3177 | -10/Exiles | Warned to stay clear of 0b10 Research branches 3257 | -10/Exiles | Met EX-DEC 3357 | -10/Exiles | Discovered new exit (range 10) 3379 | -10/Exiles | Left Exiles lab with Latent Energy Streamer 3379 | -10/Exiles | Entered Mines 3745 | -9/Mines | Build established: Mutant 3773 | -9/Mines | Met a Derelict testing a Signal Generator 3833 | -9/Mines | YI-UF0 nonchalantly dropped a Grenade Launcher on the ground 3871 | -9/Mines | Discovered new exit (range 12) 3897 | -9/Mines | Entered Materials 3897 | -8/Materials | Evolved 4 slots: Propulsion x1, Utility x2, Weapon x1 4269 | -8/Materials | Lost 5 parts (1p1n1u2w) 4381 | -8/Materials | Discovered new exit (range 8) 4578 | -8/Materials | Build established: Scavenger-Skirmisher 4922 | -8/Materials | Entered Factory 4922 | -7/Factory | Evolved 2 slots: Utility x2 5698 | -7/Factory | Fabricated Hacking Suite? 5907 | -7/Factory | Cargo convoy interrupted 6400 | -7/Factory | Build established: Hacker-Skirmisher 6410 | -7/Factory | Discovered new exit (range 6) 6425 | -7/Factory | Entered Lower Caves 6426 | -7/Lower Caves | Encountered a Warlord checkpoint 6492 | -7/Lower Caves | Found Prototype Device 6526 | -7/Lower Caves | Learned Factory terminal intel 6720 | -7/Lower Caves | Build established: Hacker-Tank 7004 | -7/Lower Caves | Attracted the attention of an 0b10 outpost 7033 | -7/Lower Caves | Core integrity fell below 50% 7085 | -7/Lower Caves | Destroyed 12 combat bots 7085 | -7/Lower Caves | Lost 12 parts (2p2n4u4w) 7112 | -7/Lower Caves | Discovered new exit (range 15) 7152 | -7/Lower Caves | Spotted B-75 Beast 7170 | -7/Lower Caves | Core integrity fell below 20% 7224 | -7/Lower Caves | Destroyed B-75 Beast 7265 | -7/Lower Caves | Identified Heart of Steel 7307 | -7/Lower Caves | Build established: Mutant 7398 | -7/Lower Caves | Entered another Lower Caves area 7532 | -7/Lower Caves | Encountered a Warlord checkpoint 7620 | -7/Lower Caves | Lost 3 allies 7656 | -7/Lower Caves | Destroyed by G-47 Trooper with Particle Gun Last Messages --------------- 07471_ System corrupted: Energy discharge (-90). 07501_ System corrupted: Energy discharge (-71). 07532_ AM-XCN(M): "If you spot any more Unaware lurking around the area, let us know." 07553_ JA-D3R(S) suffers critical hit (Burn). 07553_ JA-D3R(S) destroyed. 07555_ Acquired 11 matter. 07558_ Acquired Med. Treads. 07565_ System corrupted: Matter fused (-7). 07589_ AM-XCN(M) destroyed. 07598_ Adv. Treads destroyed. 07602_ System corrupted: Imp. Light Armor Plating rejected. 07603_ Acquired Imp. Light Armor Plating. 07604_ Flak Gun destroyed. 07625_ System corrupted: Component data lost. 07626_ T2-P1J(S) destroyed. 07628_ Deuterium Engine destroyed. 07646_ B7